[Event "Late-Titled-Tuesday-Blitz-September-05-2023"]
[Site "Chess.com"]
[Date "2023.09.05"]
[Round "4"]
[White "delqate"]
[Black "Nikachu"]
[Result "1-0"]
[WhiteElo "2368"]
[BlackElo "2158"]
[TimeControl "180+1"]
[EndTime "14:40:14 PDT"]
[Termination "delqate won by resignation"]

1. d4 {[%clk 0:02:57.5]} 1... Nf6 {[%clk 0:02:59.6]} 2. Nf3 {[%clk 0:02:57.3]}
2... g6 {[%clk 0:02:59.9]} 3. Bg5 {[%clk 0:02:56.6]} 3... Ne4 {[%clk 0:02:53.9]}
4. Bf4 {[%clk 0:02:56]} 4... c5 {[%clk 0:02:53.1]} 5. c3 {[%clk 0:02:55.9]} 5...
Bg7 {[%clk 0:02:52.2]} 6. Nbd2 {[%clk 0:02:55.4]} 6... Nxd2 {[%clk 0:02:51.7]}
7. Qxd2 {[%clk 0:02:56.3]} 7... b6 {[%clk 0:02:46.8]} 8. e3 {[%clk 0:02:56.8]}
8... d6 {[%clk 0:02:46.4]} 9. Be2 {[%clk 0:02:57.4]} 9... O-O {[%clk 0:02:46.7]}
10. O-O {[%clk 0:02:57.9]} 10... Bb7 {[%clk 0:02:46.8]} 11. Rad1 {[%clk
0:02:57]} 11... Qc7 {[%clk 0:02:42.8]} 12. dxc5 {[%clk 0:02:55.9]} 12... bxc5
{[%clk 0:02:42.7]} 13. h3 {[%clk 0:02:49.9]} 13... Nd7 {[%clk 0:02:42.2]} 14.
Bh2 {[%clk 0:02:46.8]} 14... Nf6 {[%clk 0:02:42.5]} 15. Rfe1 {[%clk 0:02:41.7]}
15... Ne4 {[%clk 0:02:42.1]} 16. Qc2 {[%clk 0:02:42.2]} 16... Qb6 {[%clk
0:02:37.1]} 17. Nd2 {[%clk 0:02:38.7]} 17... Nxd2 {[%clk 0:02:27.4]} 18. Rxd2
{[%clk 0:02:39.6]} 18... Bc6 {[%clk 0:02:25.4]} 19. a3 {[%clk 0:02:36.3]} 19...
a5 {[%clk 0:02:25.1]} 20. f3 {[%clk 0:02:29.5]} 20... Rfb8 {[%clk 0:02:23.8]}
21. e4 {[%clk 0:02:29.5]} 21... a4 {[%clk 0:02:17.1]} 22. Bc4 {[%clk 0:02:26.3]}
22... Ra7 {[%clk 0:02:00]} 23. Bf4 {[%clk 0:02:17.2]} 23... Rab7 {[%clk
0:01:58.6]} 24. Ree2 {[%clk 0:02:17.4]} 24... Bb5 {[%clk 0:01:51.1]} 25. Bxb5
{[%clk 0:02:12.6]} 25... Qxb5 {[%clk 0:01:51]} 26. Bg5 {[%clk 0:02:10.9]} 26...
Qc4 {[%clk 0:01:48.1]} 27. Qc1 {[%clk 0:01:58.2]} 27... h6 {[%clk 0:01:46.5]}
28. Be3 {[%clk 0:01:57.5]} 28... Rb3 {[%clk 0:01:32.5]} 29. Rc2 {[%clk
0:01:57.1]} 29... Kh7 {[%clk 0:01:30.1]} 30. Kh2 {[%clk 0:01:50]} 30... R8b7
{[%clk 0:01:22.9]} 31. h4 {[%clk 0:01:47.5]} 31... d5 {[%clk 0:01:16.7]} 32.
exd5 {[%clk 0:01:41.6]} 32... Qxh4+ {[%clk 0:01:14.1]} 33. Kg1 {[%clk
0:01:34.5]} 33... Qc4 {[%clk 0:01:13.6]} 34. Qd2 {[%clk 0:01:25.6]} 34... Rd7
{[%clk 0:01:10.8]} 35. Qe1 {[%clk 0:01:14.4]} 35... Rxd5 {[%clk 0:01:10.5]} 36.
Qf2 {[%clk 0:01:13.8]} 36... e6 {[%clk 0:01:09.5]} 37. Rcd2 {[%clk 0:01:11.8]}
37... Bf8 {[%clk 0:00:39.6]} 38. Qg3 {[%clk 0:00:50.6]} 38... Rb7 {[%clk
0:00:28.1]} 39. Rxd5 {[%clk 0:00:38.9]} 39... Qxd5 {[%clk 0:00:27.7]} 40. Rd2
{[%clk 0:00:39.4]} 40... Qf5 {[%clk 0:00:27.9]} 41. Qf2 {[%clk 0:00:31]} 41...
Qb1+ {[%clk 0:00:16.8]} 42. Kh2 {[%clk 0:00:30.9]} 42... Qf5 {[%clk 0:00:16.5]}
43. Kh1 {[%clk 0:00:29.1]} 43... Qb1+ {[%clk 0:00:15.7]} 44. Kh2 {[%clk
0:00:29.4]} 44... Bd6+ {[%clk 0:00:16.1]} 45. Rxd6 {[%clk 0:00:20.3]} 45... Rxb2
{[%clk 0:00:16.2]} 46. Qh4 {[%clk 0:00:16.3]} 46... h5 {[%clk 0:00:05.1]} 47.
Qf6 {[%clk 0:00:11.3]} 47... Qf1 {[%clk 0:00:03.4]} 48. Qxf7+ {[%clk 0:00:10.8]}
1-0

[Event "Late-Titled-Tuesday-Blitz-September-05-2023"]
[Site "Chess.com"]
[Date "2023.09.05"]
[Round "4"]
[White "KNVB"]
[Black "only_strong_moves"]
[Result "0-1"]
[WhiteElo "2721"]
[BlackElo "2537"]
[TimeControl "180+1"]
[EndTime "14:40:18 PDT"]
[Termination "only_strong_moves won on time"]

1. d4 {[%clk 0:03:00.9]} 1... Nf6 {[%clk 0:02:59.7]} 2. Bf4 {[%clk 0:03:01]}
2... e6 {[%clk 0:02:59.7]} 3. e3 {[%clk 0:03:01.3]} 3... d5 {[%clk 0:03:00]} 4.
Nf3 {[%clk 0:03:01.6]} 4... c5 {[%clk 0:03:00.4]} 5. c3 {[%clk 0:03:01.9]} 5...
Nc6 {[%clk 0:03:00.9]} 6. Nbd2 {[%clk 0:03:02.5]} 6... Nh5 {[%clk 0:03:00.3]} 7.
Be5 {[%clk 0:03:02]} 7... f6 {[%clk 0:03:00.1]} 8. Bg3 {[%clk 0:03:01.9]} 8...
cxd4 {[%clk 0:02:55.1]} 9. exd4 {[%clk 0:03:01.2]} 9... Bd6 {[%clk 0:02:54.8]}
10. Bxd6 {[%clk 0:02:35]} 10... Qxd6 {[%clk 0:02:55.7]} 11. g3 {[%clk
0:02:35.7]} 11... g6 {[%clk 0:02:53.9]} 12. Bg2 {[%clk 0:02:29.7]} 12... O-O
{[%clk 0:02:53.8]} 13. O-O {[%clk 0:02:30.1]} 13... Bd7 {[%clk 0:02:54.2]} 14.
Re1 {[%clk 0:02:27.8]} 14... Rae8 {[%clk 0:02:53.8]} 15. c4 {[%clk 0:02:19.1]}
15... b6 {[%clk 0:02:39.6]} 16. cxd5 {[%clk 0:01:18]} 16... exd5 {[%clk
0:02:38.6]} 17. Nf1 {[%clk 0:01:17.9]} 17... Ng7 {[%clk 0:02:35.8]} 18. a3
{[%clk 0:00:58.4]} 18... Nf5 {[%clk 0:02:31.8]} 19. Qd2 {[%clk 0:00:54.7]} 19...
Re4 {[%clk 0:02:26.9]} 20. Qc3 {[%clk 0:00:10.2]} 20... Rfe8 {[%clk 0:02:21.4]}
21. Red1 {[%clk 0:00:09.2]} 21... g5 {[%clk 0:02:16]} 22. h3 {[%clk 0:00:06.3]}
22... h5 {[%clk 0:02:15.5]} 23. Rd3 {[%clk 0:00:02.6]} 23... g4 {[%clk
0:02:07.8]} 24. hxg4 {[%clk 0:00:03.5]} 24... hxg4 {[%clk 0:02:08.7]} 25. N3h2
{[%clk 0:00:04.2]} 25... Rxd4 {[%clk 0:02:03.4]} 26. Rad1 {[%clk 0:00:04.8]}
26... Rxd3 {[%clk 0:02:01.5]} 27. Qxd3 {[%clk 0:00:05.4]} 27... Nfd4 {[%clk
0:01:53.4]} 28. Qg6+ {[%clk 0:00:04.7]} 28... Kf8 {[%clk 0:01:53]} 29. Qh6+
{[%clk 0:00:04.3]} 29... Ke7 {[%clk 0:01:43]} 30. Nxg4 {[%clk 0:00:04.4]} 30...
Rf8 {[%clk 0:01:04.4]} 31. Nfe3 {[%clk 0:00:04.2]} 31... Be6 {[%clk 0:00:58.5]}
32. Kf1 {[%clk 0:00:01.8]} 32... f5 {[%clk 0:00:51.1]} 33. Qh7+ {[%clk
0:00:01.5]} 33... Rf7 {[%clk 0:00:51.1]} 34. Qh4+ {[%clk 0:00:02.2]} 34... Kf8
{[%clk 0:00:45.2]} 35. Nh6 {[%clk 0:00:03.1]} 35... Rh7 {[%clk 0:00:18]} 36.
Qf6+ {[%clk 0:00:03.3]} 36... Ke8 {[%clk 0:00:17.5]} 37. Nhxf5 {[%clk
0:00:03.4]} 37... Qc5 {[%clk 0:00:13.6]} 38. Nxd4 {[%clk 0:00:03.2]} 38... Nxd4
{[%clk 0:00:09.1]} 39. Qxd4 {[%clk 0:00:04.1]} 39... Qb5+ {[%clk 0:00:08]} 40.
Kg1 {[%clk 0:00:04.4]} 40... Rf7 {[%clk 0:00:07.2]} 41. Bxd5 {[%clk 0:00:04.6]}
41... Qe2 {[%clk 0:00:06.9]} 42. Ng2 {[%clk 0:00:02.8]} 42... Bxd5 {[%clk
0:00:06]} 43. Qxd5 {[%clk 0:00:02.9]} 43... Qxf2+ {[%clk 0:00:06.2]} 44. Kh2
{[%clk 0:00:03.2]} 44... Rh7+ {[%clk 0:00:05.6]} 0-1

[Event "Late-Titled-Tuesday-Blitz-September-05-2023"]
[Site "Chess.com"]
[Date "2023.09.05"]
[Round "4"]
[White "Marcin"]
[Black "GP9isback23"]
[Result "0-1"]
[WhiteElo "2483"]
[BlackElo "2673"]
[TimeControl "180+1"]
[EndTime "14:40:18 PDT"]
[Termination "GP9isback23 won by resignation"]

1. e4 {[%clk 0:03:00.9]} 1... c5 {[%clk 0:03:00]} 2. c3 {[%clk 0:02:59.9]} 2...
Nf6 {[%clk 0:02:57.8]} 3. e5 {[%clk 0:03:00.1]} 3... Nd5 {[%clk 0:02:58.2]} 4.
d4 {[%clk 0:03:00.1]} 4... cxd4 {[%clk 0:02:59.1]} 5. Nf3 {[%clk 0:02:59.9]}
5... d6 {[%clk 0:02:59.2]} 6. Qxd4 {[%clk 0:02:58.6]} 6... Nb6 {[%clk
0:02:45.7]} 7. exd6 {[%clk 0:02:47.2]} 7... Qxd6 {[%clk 0:02:14.6]} 8. Qxd6
{[%clk 0:02:46.3]} 8... exd6 {[%clk 0:02:15.5]} 9. Bf4 {[%clk 0:02:27.1]} 9...
Nc6 {[%clk 0:02:10.1]} 10. Nbd2 {[%clk 0:02:24.9]} 10... Be6 {[%clk 0:02:09.8]}
11. b3 {[%clk 0:02:21.1]} 11... h6 {[%clk 0:02:09.8]} 12. h4 {[%clk 0:02:16.5]}
12... d5 {[%clk 0:02:10.4]} 13. Bb5 {[%clk 0:02:14.5]} 13... Ba3 {[%clk
0:01:55.4]} 14. Rd1 {[%clk 0:01:55.9]} 14... Be7 {[%clk 0:01:50.1]} 15. O-O
{[%clk 0:01:41.4]} 15... O-O {[%clk 0:01:49.8]} 16. Rfe1 {[%clk 0:01:37.3]}
16... Bf6 {[%clk 0:01:50.1]} 17. Be5 {[%clk 0:01:21.4]} 17... Nxe5 {[%clk
0:01:47.1]} 18. Nxe5 {[%clk 0:01:20.9]} 18... Bxh4 {[%clk 0:01:47.8]} 19. Ndf3
{[%clk 0:01:20]} 19... Bf6 {[%clk 0:01:47.5]} 20. Nd4 {[%clk 0:01:16]} 20... a6
{[%clk 0:01:27.8]} 21. Bd3 {[%clk 0:01:11.8]} 21... Rfe8 {[%clk 0:01:23.3]} 22.
f4 {[%clk 0:01:03.6]} 22... Rac8 {[%clk 0:01:14.2]} 23. Rc1 {[%clk 0:00:59.3]}
23... Rcd8 {[%clk 0:01:04.4]} 24. Nef3 {[%clk 0:00:50.7]} 24... Bg4 {[%clk
0:01:02.1]} 25. Kf2 {[%clk 0:00:48.3]} 25... Nd7 {[%clk 0:00:56.5]} 26. b4
{[%clk 0:00:39.8]} 26... Nb6 {[%clk 0:00:48.6]} 27. Kg3 {[%clk 0:00:35]} 27...
Rxe1 {[%clk 0:00:40.3]} 28. Rxe1 {[%clk 0:00:34.3]} 28... Bxf3 {[%clk
0:00:40.9]} 29. Kxf3 {[%clk 0:00:33.6]} 29... Bxd4 {[%clk 0:00:37.3]} 30. cxd4
{[%clk 0:00:32.5]} 30... Kf8 {[%clk 0:00:38]} 31. b5 {[%clk 0:00:24.7]} 31... a5
{[%clk 0:00:28.2]} 32. Rc1 {[%clk 0:00:23.7]} 32... Rc8 {[%clk 0:00:28.7]} 33.
Rc5 {[%clk 0:00:24.3]} 33... Ke7 {[%clk 0:00:22.2]} 34. Bf5 {[%clk 0:00:23.3]}
34... Rxc5 {[%clk 0:00:20.7]} 35. dxc5 {[%clk 0:00:24.2]} 35... Na4 {[%clk
0:00:19.1]} 36. c6 {[%clk 0:00:13.5]} 36... bxc6 {[%clk 0:00:20]} 37. bxc6
{[%clk 0:00:11.6]} 37... Kd6 {[%clk 0:00:19.7]} 38. Bd7 {[%clk 0:00:11.7]} 38...
Nc5 {[%clk 0:00:14.8]} 39. Be8 {[%clk 0:00:11.6]} 39... f5 {[%clk 0:00:14.6]}
40. Ke3 {[%clk 0:00:10.6]} 40... g5 {[%clk 0:00:11.7]} 41. Kd4 {[%clk 0:00:05]}
41... Ne6+ {[%clk 0:00:11.4]} 42. Kd3 {[%clk 0:00:04.2]} 42... Nxf4+ {[%clk
0:00:11.8]} 43. Ke3 {[%clk 0:00:03.4]} 43... Nxg2+ {[%clk 0:00:11.8]} 44. Kf2
{[%clk 0:00:04.3]} 44... Nf4 {[%clk 0:00:12.4]} 45. Ke3 {[%clk 0:00:05.1]} 45...
Ne6 {[%clk 0:00:13]} 46. Bd7 {[%clk 0:00:04.3]} 46... f4+ {[%clk 0:00:11.6]} 47.
Kf3 {[%clk 0:00:04.4]} 47... Nd4+ {[%clk 0:00:12.2]} 0-1

[Event "Late-Titled-Tuesday-Blitz-September-05-2023"]
[Site "Chess.com"]
[Date "2023.09.05"]
[Round "4"]
[White "artin10862"]
[Black "Alexei_Gubajdullin"]
[Result "0-1"]
[WhiteElo "2922"]
[BlackElo "2609"]
[TimeControl "180+1"]
[EndTime "14:40:21 PDT"]
[Termination "Alexei_Gubajdullin won by resignation"]

1. d4 {[%clk 0:03:00.9]} 1... Nf6 {[%clk 0:02:58.7]} 2. Nf3 {[%clk 0:03:01.6]}
2... g6 {[%clk 0:02:58.9]} 3. Bf4 {[%clk 0:03:01.8]} 3... Bg7 {[%clk 0:02:58.9]}
4. e3 {[%clk 0:03:02.4]} 4... O-O {[%clk 0:02:59.2]} 5. Be2 {[%clk 0:03:00.9]}
5... d6 {[%clk 0:02:59.3]} 6. h3 {[%clk 0:03:00.9]} 6... Nc6 {[%clk 0:02:59.3]}
7. O-O {[%clk 0:03:00.4]} 7... Nd7 {[%clk 0:02:58.5]} 8. Bh2 {[%clk 0:03:00.7]}
8... e5 {[%clk 0:02:58.7]} 9. a4 {[%clk 0:03:00.4]} 9... f5 {[%clk 0:02:58.3]}
10. a5 {[%clk 0:02:54.6]} 10... a6 {[%clk 0:02:57.8]} 11. c3 {[%clk 0:02:40.2]}
11... g5 {[%clk 0:02:56.7]} 12. Nfd2 {[%clk 0:02:34.3]} 12... f4 {[%clk
0:02:47.8]} 13. d5 {[%clk 0:02:32.2]} 13... Ne7 {[%clk 0:02:46.8]} 14. e4 {[%clk
0:02:29.4]} 14... Nf6 {[%clk 0:02:43.2]} 15. g4 {[%clk 0:02:27.4]} 15... fxg3
{[%clk 0:02:37.7]} 16. fxg3 {[%clk 0:02:25.2]} 16... Bxh3 {[%clk 0:02:37.1]} 17.
Rf2 {[%clk 0:02:25.8]} 17... g4 {[%clk 0:02:27.2]} 18. Bf1 {[%clk 0:02:19.7]}
18... Bh6 {[%clk 0:02:15.4]} 19. Qe1 {[%clk 0:02:14.5]} 19... Qb8 {[%clk
0:02:06.1]} 20. c4 {[%clk 0:02:12.3]} 20... Qa7 {[%clk 0:02:05.9]} 21. Ra3
{[%clk 0:02:11.8]} 21... Nh5 {[%clk 0:01:54.1]} 22. Bxh3 {[%clk 0:02:02.2]}
22... gxh3 {[%clk 0:01:52.8]} 23. Nf3 {[%clk 0:01:58.1]} 23... Nf6 {[%clk
0:01:50.5]} 24. Kh1 {[%clk 0:01:53.6]} 24... Nxe4 {[%clk 0:01:49.4]} 25. Rf1
{[%clk 0:01:47.3]} 25... Ng5 {[%clk 0:01:26]} 26. Nbd2 {[%clk 0:01:42]} 26...
Nxf3 {[%clk 0:01:08.8]} 27. Nxf3 {[%clk 0:01:35.6]} 27... Qc5 {[%clk 0:01:00.9]}
28. Qe2 {[%clk 0:01:27.6]} 28... Nf5 {[%clk 0:00:53.2]} 29. g4 {[%clk
0:01:17.9]} 29... Ne3 {[%clk 0:00:50.2]} 30. Bg1 {[%clk 0:01:12.3]} 30... Nxf1
{[%clk 0:00:47.3]} 31. Qxf1 {[%clk 0:01:12.1]} 31... Qb4 {[%clk 0:00:44.4]} 32.
Qxh3 {[%clk 0:01:11.7]} 32... Qxb2 {[%clk 0:00:40.1]} 33. Nh4 {[%clk 0:00:43.7]}
33... Qe2 {[%clk 0:00:22.5]} 34. Nf5 {[%clk 0:00:40]} 34... Qe4+ {[%clk
0:00:22.2]} 35. Rf3 {[%clk 0:00:39.1]} 35... Bg5 {[%clk 0:00:22.2]} 36. Kg2
{[%clk 0:00:36.2]} 36... Rf6 {[%clk 0:00:21.7]} 37. Qh5 {[%clk 0:00:34.1]} 37...
h6 {[%clk 0:00:19.8]} 38. Kf2 {[%clk 0:00:18.7]} 38... Raf8 {[%clk 0:00:19.3]}
39. Kg2 {[%clk 0:00:15.8]} 39... Qxc4 {[%clk 0:00:18.5]} 40. Ne7+ {[%clk
0:00:14.1]} 40... Kg7 {[%clk 0:00:18.1]} 41. Nf5+ {[%clk 0:00:14.1]} 41... Kh7
{[%clk 0:00:18.2]} 42. Be3 {[%clk 0:00:13.5]} 42... Bxe3 {[%clk 0:00:16.5]} 43.
Rxe3 {[%clk 0:00:13.4]} 43... Qxd5+ {[%clk 0:00:16.5]} 44. Kg3 {[%clk
0:00:12.1]} 44... Rxf5 {[%clk 0:00:16.5]} 45. gxf5 {[%clk 0:00:10.7]} 45... Rg8+
{[%clk 0:00:16.7]} 46. Kh4 {[%clk 0:00:11.4]} 46... Qh1+ {[%clk 0:00:15.9]} 47.
Rh3 {[%clk 0:00:08.9]} 47... Qe1+ {[%clk 0:00:15.4]} 0-1

[Event "Late-Titled-Tuesday-Blitz-September-05-2023"]
[Site "Chess.com"]
[Date "2023.09.05"]
[Round "4"]
[White "Murad_Ibrahimli"]
[Black "Hikaru"]
[Result "0-1"]
[WhiteElo "2917"]
[BlackElo "3250"]
[TimeControl "180+1"]
[EndTime "14:40:23 PDT"]
[Termination "Hikaru won by resignation"]

1. d4 {[%clk 0:03:00.9]} 1... a6 {[%clk 0:02:57.4]} 2. g3 {[%clk 0:02:59.5]}
2... c5 {[%clk 0:02:54.3]} 3. d5 {[%clk 0:02:57.4]} 3... b5 {[%clk 0:02:53.8]}
4. Bg2 {[%clk 0:02:57.9]} 4... d6 {[%clk 0:02:54]} 5. e4 {[%clk 0:02:55.2]} 5...
g6 {[%clk 0:02:53.3]} 6. a4 {[%clk 0:02:54.3]} 6... Bb7 {[%clk 0:02:50.1]} 7.
Qe2 {[%clk 0:02:50]} 7... b4 {[%clk 0:02:50.5]} 8. a5 {[%clk 0:02:49]} 8... Bg7
{[%clk 0:02:50]} 9. Nd2 {[%clk 0:02:49.2]} 9... Bc8 {[%clk 0:02:49.5]} 10. Nc4
{[%clk 0:02:48.7]} 10... Bd7 {[%clk 0:02:50.1]} 11. Nf3 {[%clk 0:02:35.3]} 11...
Bb5 {[%clk 0:02:49.7]} 12. e5 {[%clk 0:02:21.1]} 12... dxe5 {[%clk 0:02:02.5]}
13. Nfxe5 {[%clk 0:02:22]} 13... Nf6 {[%clk 0:02:02.9]} 14. O-O {[%clk
0:02:08.2]} 14... O-O {[%clk 0:02:00.1]} 15. Rd1 {[%clk 0:02:08.4]} 15... Ne8
{[%clk 0:01:48.9]} 16. Qe3 {[%clk 0:01:50.1]} 16... Nd6 {[%clk 0:01:48.4]} 17.
Nb6 {[%clk 0:01:36.3]} 17... Ra7 {[%clk 0:01:45.3]} 18. Nc6 {[%clk 0:01:31.6]}
18... Nxc6 {[%clk 0:01:40.7]} 19. dxc6 {[%clk 0:01:32.5]} 19... Bd4 {[%clk
0:01:40.8]} 20. Rxd4 {[%clk 0:01:27.2]} 20... cxd4 {[%clk 0:01:41.6]} 21. Qxd4
{[%clk 0:01:27.9]} 21... Rc7 {[%clk 0:01:27]} 22. Bh6 {[%clk 0:00:38.2]} 22...
Nf5 {[%clk 0:01:26.2]} 23. Qxd8 {[%clk 0:00:38.9]} 23... Rxd8 {[%clk 0:01:27]}
24. Bf4 {[%clk 0:00:39.1]} 24... Rxc6 {[%clk 0:01:24.4]} 25. Bxc6 {[%clk
0:00:33.3]} 25... Bxc6 {[%clk 0:01:25.3]} 26. c3 {[%clk 0:00:33.8]} 26... bxc3
{[%clk 0:01:22.9]} 27. bxc3 {[%clk 0:00:34.7]} 27... f6 {[%clk 0:01:23.2]} 28.
Rc1 {[%clk 0:00:19.1]} 28... e5 {[%clk 0:01:19.2]} 29. Be3 {[%clk 0:00:19.7]}
29... Nxe3 {[%clk 0:01:19.7]} 30. fxe3 {[%clk 0:00:20.6]} 30... Rd2 {[%clk
0:01:20.3]} 31. c4 {[%clk 0:00:13.9]} 31... Rg2+ {[%clk 0:01:20]} 32. Kf1 {[%clk
0:00:14.6]} 32... Rxh2 {[%clk 0:01:20.9]} 33. Rc3 {[%clk 0:00:14]} 33... Ra2
{[%clk 0:01:17]} 34. Rd3 {[%clk 0:00:14.5]} 34... Kg7 {[%clk 0:01:11.1]} 35. Rd6
{[%clk 0:00:14.6]} 35... Bg2+ {[%clk 0:01:11.5]} 36. Kg1 {[%clk 0:00:14.6]}
36... Bf3 {[%clk 0:01:11.7]} 37. c5 {[%clk 0:00:13.6]} 37... Rxa5 {[%clk
0:01:11.3]} 38. Nd7 {[%clk 0:00:13.2]} 38... Ra2 {[%clk 0:00:57.3]} 39. e4
{[%clk 0:00:11.3]} 39... Bxe4 {[%clk 0:00:55.3]} 40. Nxf6 {[%clk 0:00:11.9]}
40... Bf3 {[%clk 0:00:54.4]} 41. c6 {[%clk 0:00:08.2]} 41... Rc2 {[%clk
0:00:54.5]} 42. c7 {[%clk 0:00:08.1]} 42... Kf7 {[%clk 0:00:23.6]} 43. Nxh7
{[%clk 0:00:08.2]} 43... Bb7 {[%clk 0:00:20.6]} 44. Rd7+ {[%clk 0:00:05]} 44...
Ke6 {[%clk 0:00:19.6]} 45. Nf8+ {[%clk 0:00:05.2]} 45... Kf5 {[%clk 0:00:20.3]}
46. Rf7+ {[%clk 0:00:05.4]} 46... Kg4 {[%clk 0:00:20.3]} 47. Nxg6 {[%clk
0:00:06.1]} 47... e4 {[%clk 0:00:19.8]} 48. Rg7 {[%clk 0:00:03.9]} 48... e3
{[%clk 0:00:19.8]} 49. Nf4+ {[%clk 0:00:03.6]} 49... Kf5 {[%clk 0:00:18.5]} 50.
Rf7+ {[%clk 0:00:03.3]} 50... Kg4 {[%clk 0:00:17.8]} 51. Re7 {[%clk 0:00:03.4]}
51... Rc1+ {[%clk 0:00:17.6]} 0-1

[Event "Late-Titled-Tuesday-Blitz-September-05-2023"]
[Site "Chess.com"]
[Date "2023.09.05"]
[Round "4"]
[White "drinbet"]
[Black "JackRodgers"]
[Result "1-0"]
[WhiteElo "2280"]
[BlackElo "2593"]
[TimeControl "180+1"]
[EndTime "14:40:23 PDT"]
[Termination "drinbet won by resignation"]

1. e4 {[%clk 0:03:00.9]} 1... c5 {[%clk 0:02:59.9]} 2. Nf3 {[%clk 0:03:00.4]}
2... g6 {[%clk 0:02:59.9]} 3. c3 {[%clk 0:02:55.8]} 3... Bg7 {[%clk 0:02:59.1]}
4. d4 {[%clk 0:02:55.4]} 4... cxd4 {[%clk 0:03:00]} 5. cxd4 {[%clk 0:02:55.3]}
5... d5 {[%clk 0:03:00.6]} 6. e5 {[%clk 0:02:54.6]} 6... Bg4 {[%clk 0:02:59.9]}
7. Be3 {[%clk 0:02:53.9]} 7... Nc6 {[%clk 0:02:58.9]} 8. Nbd2 {[%clk 0:02:53.2]}
8... Nh6 {[%clk 0:02:58.9]} 9. Bd3 {[%clk 0:02:52.5]} 9... Nf5 {[%clk
0:02:57.1]} 10. Bxf5 {[%clk 0:02:51.3]} 10... Bxf5 {[%clk 0:02:57.4]} 11. O-O
{[%clk 0:02:48.9]} 11... O-O {[%clk 0:02:56.1]} 12. a3 {[%clk 0:02:48.6]} 12...
Rc8 {[%clk 0:02:55.5]} 13. Rc1 {[%clk 0:02:47.6]} 13... a6 {[%clk 0:02:50.5]}
14. Nb3 {[%clk 0:02:45.7]} 14... b6 {[%clk 0:02:38.4]} 15. Qe2 {[%clk
0:02:41.5]} 15... b5 {[%clk 0:02:22.1]} 16. Nc5 {[%clk 0:02:37.9]} 16... Qb6
{[%clk 0:02:21.7]} 17. h3 {[%clk 0:02:31]} 17... Rfd8 {[%clk 0:02:12.1]} 18. g4
{[%clk 0:02:13.7]} 18... Be4 {[%clk 0:02:12.3]} 19. Nd2 {[%clk 0:02:05.6]} 19...
Na5 {[%clk 0:01:32.1]} 20. f3 {[%clk 0:01:45.6]} 20... Bf5 {[%clk 0:01:10.4]}
21. gxf5 {[%clk 0:01:43.4]} 21... gxf5 {[%clk 0:01:11.3]} 22. b4 {[%clk
0:01:35.5]} 22... Nc4 {[%clk 0:01:08.6]} 23. Nxc4 {[%clk 0:01:34.6]} 23... bxc4
{[%clk 0:01:09]} 24. e6 {[%clk 0:01:24.4]} 24... fxe6 {[%clk 0:01:04.7]} 25. f4
{[%clk 0:01:23.8]} 25... Kf7 {[%clk 0:01:04.4]} 26. Qh5+ {[%clk 0:01:21.4]}
26... Kg8 {[%clk 0:01:04.7]} 27. Kf2 {[%clk 0:01:20.5]} 27... Kh8 {[%clk
0:01:02.3]} 28. Rg1 {[%clk 0:01:16.7]} 28... Rg8 {[%clk 0:01:02]} 29. Qf7 {[%clk
0:01:03.6]} 29... Rcf8 {[%clk 0:00:48.7]} 30. Qxe6 {[%clk 0:01:02.9]} 30... Qd8
{[%clk 0:00:49.4]} 31. Rg5 {[%clk 0:00:43.9]} 31... Rf6 {[%clk 0:00:48.8]} 32.
Qd7 {[%clk 0:00:39.1]} 32... Qf8 {[%clk 0:00:46.8]} 33. Rcg1 {[%clk 0:00:37.9]}
33... Qf7 {[%clk 0:00:39.3]} 34. Ke2 {[%clk 0:00:17.5]} 34... h6 {[%clk
0:00:38.6]} 35. R5g3 {[%clk 0:00:16.7]} 35... Qh5+ {[%clk 0:00:35.5]} 36. Kd2
{[%clk 0:00:17]} 36... Qf7 {[%clk 0:00:34.9]} 37. Kc3 {[%clk 0:00:16.8]} 37...
Kh7 {[%clk 0:00:28.7]} 38. a4 {[%clk 0:00:17]} 38... Rd6 {[%clk 0:00:15.8]} 39.
Qb7 {[%clk 0:00:16.5]} 39... Qf6 {[%clk 0:00:06.8]} 40. b5 {[%clk 0:00:16.4]}
40... Re6 {[%clk 0:00:07.2]} 41. Nxe6 {[%clk 0:00:15.4]} 41... Qxe6 {[%clk
0:00:08.1]} 42. Kd2 {[%clk 0:00:14.5]} 42... c3+ {[%clk 0:00:07]} 43. Kd3 {[%clk
0:00:14.8]} 43... Qe4+ {[%clk 0:00:06.7]} 44. Kxc3 {[%clk 0:00:15.1]} 44... Qe6
{[%clk 0:00:04.6]} 45. Kb4 {[%clk 0:00:15.3]} 45... axb5 {[%clk 0:00:03.4]} 46.
axb5 {[%clk 0:00:15.2]} 46... Qd6+ {[%clk 0:00:04]} 47. Kb3 {[%clk 0:00:15.4]}
47... Rb8 {[%clk 0:00:03.7]} 48. Rxg7+ {[%clk 0:00:14.6]} 48... Kh8 {[%clk
0:00:04.3]} 49. Qxb8+ {[%clk 0:00:14.8]} 49... Qxb8 {[%clk 0:00:04.3]} 50. Rg8+
{[%clk 0:00:15.7]} 50... Qxg8 {[%clk 0:00:05]} 51. Rxg8+ {[%clk 0:00:15.9]}
51... Kxg8 {[%clk 0:00:05.9]} 52. b6 {[%clk 0:00:16.4]} 1-0